[Event "Reykjavik Open 2025"]
[Site "Reykjavik"]
[Date "2025.04.10"]
[Round "3.22"]
[White "Haraldsson, Leif"]
[Black "Lohr, Matthias"]
[Result "0-1"]
[Annotator "ChessBase"]
[ECO "A03"]
[WhiteElo "1844"]
[BlackElo "2092"]
[PlyCount "138"]
[EventDate "2025.04.09"]
[EventType "swiss"]
[EventCountry "ISL"]
[SourceTitle "playchess.com"]
[Source "ChessBase"]
[SourceQuality "1"]
[TimeControl "40/5400+30:1800+30"]

1. f4 {[%emt 0:00:04]} d5 {[%emt 0:00:39]} 2. Nf3 {[%emt 0:00:15]} Nf6 {[%emt 0:00:57]} 3. g3 {[%emt 0:00:19]} g6 {[%emt 0:00:20]} 4. Bg2 {[%emt 0:00:07]} Bg7 {[%emt 0:00:07]} 5. d3 {[%emt 0:00:08]} b6 {[%emt 0:00:53]} 6. O-O {[%emt 0:00:15]} Bb7 {[%emt 0:00:06]} 7. c3 {[%emt 0:00:19]} c5 {[%emt 0:02:21]} 8. Qc2 {[%emt 0:00:29]} Qc7 {[%emt 0:01:27]} 9. Na3 {[%emt 0:02:18]} a6 {[%emt 0:00:28]} 10. Bd2 {[%emt 0:00:37]} Nbd7 {[%emt 0:01:31]} 11. Rac1 {[%emt 0:02:26]} O-O {[%emt 0:01:05]} 12. Nh4 {[%emt 0:03:54]} b5 {[%emt 0:04:41]} 13. Qb1 {[%emt 0:03:08]} e5 {[%emt 0:15:15]} 14. e3 {[%emt 0:09:16]} c4 {[%emt 0:09:05]} 15. d4 {[%emt 0:04:22]} exd4 {[%emt 0:00:59]} 16. exd4 {[%emt 0:00:28]} Ne4 {[%emt 0:01:12]} 17. Be3 {[%emt 0:02:06]} Rfe8 {[%emt 0:00:55]} 18. Rce1 {[%emt 0:00:50]} Ndf6 {[%emt 0:02:25]} 19. Qd1 {[%emt 0:03:01]} Bc8 {[%emt 0:10:07]} 20. Nc2 {[%emt 0:03:32]} a5 {[%emt 0:01:56]} 21. Bc1 {[%emt 0:02:11]} Bg4 {[%emt 0:02:42]} 22. Nf3 {[%emt 0:02:10]} Rab8 {[%emt 0:06:35]} 23. Ne3 {[%emt 0:00:39]} Bh5 {[%emt 0:02:52]} 24. Qc2 {[%emt 0:00:33]} Bxf3 {[%emt 0:03:55]} 25. Bxf3 {[%emt 0:00:10]} Qd7 {[%emt 0:01:30]} 26. Re2 {[%emt 0:04:50]} Re7 {[%emt 0:01:11]} 27. Rfe1 {[%emt 0:02:38]} Rbe8 {[%emt 0:00:07]} 28. b3 {[%emt 0:01:07]} cxb3 {[%emt 0:05:09]} 29. axb3 {[%emt 0:00:20]} b4 {[%emt 0:00:06]} 30. cxb4 {[%emt 0:13:22]} axb4 {[%emt 0:00:07]} 31. Qd3 {[%emt 0:00:43]} Nc3 {[%emt 0:00:46]} 32. Rc2 {[%emt 0:05:12]} Nfe4 {[%emt 0:02:11]} 33. Bd2 {[%emt 0:05:52]} f5 {[%emt 0:06:27]} 34. Kf1 {[%emt 0:05:14]} h5 {[%emt 0:07:13]} 35. Ng2 {[%emt 0:01:48]} Kh7 {[%emt 0:01:04]} 36. Ra1 {[%emt 0:00:49]} Nxd2+ {[%emt 0:02:20]} 37. Rxd2 {[%emt 0:01:17]} Nb5 {[%emt 0:00:04]} 38. Ra5 {[%emt 0:00:49]} Nc3 {[%emt 0:00:48]} 39. Rc2 {[%emt 0:03:14]} Qd8 {[%emt 0:04:25]} 40. Ra6 {[%emt 0:01:25]} Re6 {[%emt 0:00:17]} 41. Rd2 {[%emt 0:34:45]} Qc8 {[%emt 0:32:29]} 42. Ra5 {[%emt 0:05:00]} Qd8 {[%emt 0:00:45]} 43. Ra6 {[%emt 0:01:13]} R8e7 {[%emt 0:00:47]} 44. Nh4 {[%emt 0:05:29]} Rxa6 {[%emt 0:00:00]} 45. Qxa6 {[%emt 0:00:00]} Qe8 {[%emt 0:00:00]} 46. Qa5 {[%emt 0:00:00]} Re1+ {[%emt 0:00:00]} 47. Kg2 {[%emt 0:00:00]} Qe3 {[%emt 0:00:00]} 48. Rc2 {[%emt 0:00:00]} Qd3 {[%emt 0:00:00]} 49. Rf2 {[%emt 0:00:00]} Qxd4 {[%emt 0:00:00]} 50. Qa6 {[%emt 0:00:00]} Qf6 {[%emt 0:00:00]} 51. Qb7 {[%emt 0:00:00]} Qe7 {[%emt 0:00:00]} 52. Bxd5 {[%emt 0:00:00]} Qxb7 {[%emt 0:00:47]} 53. Bxb7 {[%emt 0:00:00]} Rb1 {[%emt 0:00:20]} 54. Ba6 {[%emt 0:00:00]} Rxb3 {[%emt 0:00:14]} 55. Bc4 {[%emt 0:00:00]} Ra3 {[%emt 0:00:56]} 56. Rb2 {[%emt 0:00:00]} Bf8 {[%emt 0:00:48]} 57. Rd2 {[%emt 0:00:00]} Ra7 {[%emt 0:00:26]} 58. Rd8 {[%emt 0:00:00]} Be7 {[%emt 0:01:14]} 59. Rb8 {[%emt 0:00:00]} Ne4 {[%emt 0:00:56]} 60. Nf3 {[%emt 0:00:00]} Rd7 {[%emt 0:01:20]} 61. Be6 {[%emt 0:00:00]} Rc7 {[%emt 0:00:18]} 62. Bb3 {[%emt 0:00:00]} Bd6 {[%emt 0:00:30]} 63. Rd8 {[%emt 0:00:00]} Be7 {[%emt 0:00:09]} 64. Rb8 {[%emt 0:00:00]} Bd6 {[%emt 0:00:54]} 65. Rd8 {[%emt 0:00:00]} Rc3 {[%emt 0:00:34]} 66. Nd4 {[%emt 0:00:00]} Rd3 {[%emt 0:00:27]} 67. Rd7+ {[%emt 0:00:00]} Kh6 {[%emt 0:00:28]} 68. Nb5 {[%emt 0:00:00]} Rd2+ {[%emt 0:01:32]} 69. Kh3 {[%emt 0:03:29]} g5 {[%emt 0:00:00]} 0-1

[Event "Reykjavik Open 2025"]
[Site "Reykjavik"]
[Date "2025.04.10"]
[Round "3.23"]
[White "Blanchet, Mathieu"]
[Black "Yu, Tianxiang Carlos"]
[Result "1/2-1/2"]
[Annotator "ChessBase"]
[ECO "A57"]
[WhiteElo "2091"]
[BlackElo "1843"]
[PlyCount "66"]
[EventDate "2025.04.09"]
[EventType "swiss"]
[EventCountry "ISL"]
[SourceTitle "playchess.com"]
[Source "ChessBase"]
[SourceQuality "1"]
[TimeControl "40/5400+30:1800+30"]

1. d4 {[%emt 0:00:02]} Nf6 {[%emt 0:01:20]} 2. c4 {[%emt 0:00:03]} c5 {[%emt 0:00:05]} 3. d5 {[%emt 0:00:05]} b5 {[%emt 0:00:03]} 4. Qc2 {[%emt 0:00:05]} b4 {[%emt 0:00:06]} 5. a3 {[%emt 0:00:52]} a5 {[%emt 0:09:02]} 6. e4 {[%emt 0:00:41]} d6 {[%emt 0:01:19]} 7. Bd3 {[%emt 0:00:13]} g6 {[%emt 0:00:25]} 8. Nf3 {[%emt 0:00:10]} Bg7 {[%emt 0:00:06]} 9. O-O {[%emt 0:00:56]} O-O {[%emt 0:00:03]} 10. h3 {[%emt 0:00:37]} Na6 {[%emt 0:02:47]} 11. Qd1 {[%emt 0:05:45]} e5 {[%emt 0:02:22]} 12. dxe6 {[%emt 0:10:08]} Bxe6 {[%emt 0:02:52]} 13. Re1 {[%emt 0:00:41]} Nd7 {[%emt 0:09:26]} 14. Nbd2 {[%emt 0:06:11]} bxa3 {[%emt 0:08:18]} 15. Rxa3 {[%emt 0:00:14]} Nb4 {[%emt 0:00:15]} 16. Nf1 {[%emt 0:12:00]} Ne5 {[%emt 0:05:45]} 17. Nxe5 {[%emt 0:01:33]} Bxe5 {[%emt 0:00:28]} 18. Ne3 {[%emt 0:04:32]} Qf6 {[%emt 0:10:56]} 19. Qe2 {[%emt 0:03:24]} Nc6 {[%emt 0:03:14]} 20. Nd5 {[%emt 0:04:22]} Bxd5 {[%emt 0:00:33]} 21. cxd5 {[%emt 0:01:14]} Nd4 {[%emt 0:00:44]} 22. Qf1 {[%emt 0:01:01]} g5 {[%emt 0:03:02]} 23. Be3 {[%emt 0:08:23]} Rfb8 {[%emt 0:01:03]} 24. Rb1 {[%emt 0:09:39]} Kh8 {[%emt 0:05:01]} 25. Qe1 {[%emt 0:07:20]} a4 {[%emt 0:13:48]} 26. Bxd4 {[%emt 0:04:07]} Bxd4 {[%emt 0:00:06]} 27. Bc2 {[%emt 0:00:52]} Rb4 {[%emt 0:02:34]} 28. b3 {[%emt 0:01:58]} Rab8 {[%emt 0:08:56]} 29. Rxa4 {[%emt 0:00:54]} Bc3 {[%emt 0:01:32]} 30. Qe2 {[%emt 0:02:16]} Rxa4 {[%emt 0:01:13]} 31. bxa4 {[%emt 0:00:01]} Rxb1+ {[%emt 0:00:01]} 32. Bxb1 {[%emt 0:00:01]} Qd4 {[%emt 0:01:25]} 33. Qc2 {[%emt 0:05:51]} Kg8 {[%emt 0:03:52]} 1/2-1/2

[Event "Reykjavik Open 2025"]
[Site "Reykjavik"]
[Date "2025.04.10"]
[Round "3.24"]
[White "Mensing, Adrian"]
[Black "Kiss, Inez"]
[Result "1-0"]
[Annotator "ChessBase"]
[ECO "B12"]
[WhiteElo "2078"]
[BlackElo "1812"]
[PlyCount "79"]
[EventDate "2025.04.09"]
[EventType "swiss"]
[EventCountry "ISL"]
[SourceTitle "playchess.com"]
[Source "ChessBase"]
[SourceQuality "1"]
[TimeControl "40/5400+30:1800+30"]

1. e4 {[%emt 0:05:49]} c6 {[%emt 0:00:08]} 2. d4 {[%emt 0:00:11]} d5 {[%emt 0:00:07]} 3. f3 {[%emt 0:01:04]} Qb6 {[%emt 0:00:08]} 4. Nc3 {[%emt 0:00:11]} dxe4 {[%emt 0:00:21]} 5. fxe4 {[%emt 0:02:30]} e5 {[%emt 0:00:25]} 6. Nf3 {[%emt 0:00:42]} exd4 {[%emt 0:00:31]} 7. Qxd4 {[%emt 0:00:30]} Qxd4 {[%emt 0:00:47]} 8. Nxd4 {[%emt 0:00:15]} Bc5 {[%emt 0:03:51]} 9. Nb3 {[%emt 0:00:55]} Bb4 {[%emt 0:00:41]} 10. Bd2 {[%emt 0:00:20]} Nf6 {[%emt 0:02:54]} 11. Bd3 {[%emt 0:01:37]} O-O {[%emt 0:01:19]} 12. O-O {[%emt 0:03:01]} Be6 {[%emt 0:07:09]} 13. Rae1 {[%emt 0:09:11]} Nbd7 {[%emt 0:03:48]} 14. a3 {[%emt 0:12:35]} Bd6 {[%emt 0:05:33]} 15. Kh1 {[%emt 0:09:25]} Bxb3 {[%emt 0:05:38]} 16. cxb3 {[%emt 0:01:34]} Nc5 {[%emt 0:08:01]} 17. Bc2 {[%emt 0:00:24]} Rfe8 {[%emt 0:02:41]} 18. b4 {[%emt 0:10:40]} Ncd7 {[%emt 0:05:37]} 19. Bb3 {[%emt 0:00:35]} Ne5 {[%emt 0:02:38]} 20. Bg5 {[%emt 0:07:43]} Be7 {[%emt 0:24:31]} 21. Rf5 {[%emt 0:01:59]} Bd8 {[%emt 0:09:58]} 22. Rd1 {[%emt 0:08:18]} h6 {[%emt 0:02:01]} 23. Be3 {[%emt 0:04:22]} Bb6 {[%emt 0:03:54]} 24. Bc5 {[%emt 0:06:45]} Bxc5 {[%emt 0:01:57]} 25. bxc5 {[%emt 0:00:02]} Re7 {[%emt 0:02:01]} 26. h3 {[%emt 0:01:58]} Nfd7 {[%emt 0:01:49]} 27. Na4 {[%emt 0:02:03]} g6 {[%emt 0:00:30]} 28. Rf2 {[%emt 0:00:39]} Kg7 {[%emt 0:00:49]} 29. Ba2 {[%emt 0:00:34]} Nf6 {[%emt 0:01:08]} 30. Nc3 {[%emt 0:00:19]} Ned7 {[%emt 0:01:33]} 31. b4 {[%emt 0:00:30]} a5 {[%emt 0:00:35]} 32. Rdf1 {[%emt 0:04:55]} axb4 {[%emt 0:00:37]} 33. axb4 {[%emt 0:00:01]} Ra3 {[%emt 0:01:38]} 34. Rf3 {[%emt 0:00:02]} Ne5 {[%emt 0:01:00]} 35. Rxf6 {[%emt 0:04:02]} Rxc3 {[%emt 0:00:06]} 36. R1f2 {[%emt 0:01:06]} Re3 {[%emt 0:01:17]} 37. b5 {[%emt 0:01:40]} Rxe4 {[%emt 0:00:35]} 38. R6f4 {[%emt 0:00:28]} Rxf4 {[%emt 0:00:38]} 39. Rxf4 {[%emt 0:00:03]} Nd3 {[%emt 0:00:25]} 40. Rc4 {[%emt 0:01:01]} 1-0

[Event "Reykjavik Open 2025"]
[Site "Reykjavik"]
[Date "2025.04.10"]
[Round "3.25"]
[White "Martin, Alix"]
[Black "Tessiore, Luca G"]
[Result "0-1"]
[Annotator "ChessBase"]
[ECO "C80"]
[WhiteElo "1807"]
[BlackElo "2087"]
[PlyCount "170"]
[EventDate "2025.04.09"]
[EventType "swiss"]
[EventCountry "ISL"]
[SourceTitle "playchess.com"]
[Source "ChessBase"]
[SourceQuality "1"]
[TimeControl "40/5400+30:1800+30"]

1. e4 {[%emt 0:00:01]} e5 {[%emt 0:00:04]} 2. Nf3 {[%emt 0:00:04]} Nc6 {[%emt 0:00:03]} 3. Bb5 {[%emt 0:00:05]} a6 {[%emt 0:00:02]} 4. Ba4 {[%emt 0:00:04]} Nf6 {[%emt 0:00:05]} 5. O-O {[%emt 0:00:32]} Be7 {[%emt 0:00:04]} 6. c3 {[%emt 0:00:23]} Nxe4 {[%emt 0:00:54]} 7. Re1 {[%emt 0:00:21]} Nc5 {[%emt 0:00:14]} 8. Bxc6 {[%emt 0:01:56]} dxc6 {[%emt 0:00:20]} 9. Nxe5 {[%emt 0:01:46]} O-O {[%emt 0:00:08]} 10. d4 {[%emt 0:00:53]} Nd7 {[%emt 0:00:09]} 11. Bf4 {[%emt 0:02:17]} Nxe5 {[%emt 0:00:41]} 12. Bxe5 {[%emt 0:02:42]} Be6 {[%emt 0:05:06]} 13. Nd2 {[%emt 0:03:03]} c5 {[%emt 0:00:50]} 14. dxc5 {[%emt 0:08:50]} Bxc5 {[%emt 0:00:19]} 15. Nb3 {[%emt 0:02:08]} Qxd1 {[%emt 0:04:47]} 16. Raxd1 {[%emt 0:00:19]} Bb6 {[%emt 0:00:54]} 17. Bd4 {[%emt 0:01:25]} Bxd4 {[%emt 0:01:22]} 18. Rxd4 {[%emt 0:00:55]} Rad8 {[%emt 0:02:16]} 19. Red1 {[%emt 0:03:57]} Rxd4 {[%emt 0:00:30]} 20. Rxd4 {[%emt 0:00:25]} b6 {[%emt 0:00:18]} 21. f3 {[%emt 0:02:00]} Rb8 {[%emt 0:00:18]} 22. Nc1 {[%emt 0:01:05]} Kf8 {[%emt 0:00:22]} 23. a3 {[%emt 0:01:05]} Ke7 {[%emt 0:00:33]} 24. Kf2 {[%emt 0:06:33]} c5 {[%emt 0:02:07]} 25. Rd2 {[%emt 0:00:29]} Rd8 {[%emt 0:00:10]} 26. Rxd8 {[%emt 0:00:17]} Kxd8 {[%emt 0:00:06]} 27. Ke3 {[%emt 0:02:36]} Ke7 {[%emt 0:00:09]} 28. h4 {[%emt 0:03:49]} f6 {[%emt 0:00:27]} 29. g4 {[%emt 0:03:09]} Kd6 {[%emt 0:00:33]} 30. Nd3 {[%emt 0:01:34]} g5 {[%emt 0:02:06]} 31. hxg5 {[%emt 0:01:14]} fxg5 {[%emt 0:00:07]} 32. Nf2 {[%emt 0:00:53]} Ke5 {[%emt 0:00:35]} 33. Ne4 {[%emt 0:02:48]} h6 {[%emt 0:00:06]} 34. Nd2 {[%emt 0:05:31]} Bd5 {[%emt 0:00:09]} 35. b4 {[%emt 0:01:20]} cxb4 {[%emt 0:01:55]} 36. cxb4 {[%emt 0:00:31]} Bf7 {[%emt 0:00:34]} 37. Ne4 {[%emt 0:18:23]} Bg6 {[%emt 0:01:00]} 38. Nc3 {[%emt 0:02:11]} Be8 {[%emt 0:00:08]} 39. Ne4 {[%emt 0:01:12]} Bd7 {[%emt 0:00:14]} 40. Nc3 {[%emt 0:02:36]} Bc6 {[%emt 0:00:14]} 41. Nb1 {[%emt 0:33:46]} Kd5 {[%emt 0:32:15]} 42. Nd2 {[%emt 0:00:24]} Be8 {[%emt 0:02:51]} 43. Kd3 {[%emt 0:07:35]} Bg6+ {[%emt 0:00:11]} 44. Ke3 {[%emt 0:00:12]} Bh7 {[%emt 0:01:01]} 45. a4 {[%emt 0:01:42]} Bg6 {[%emt 0:00:33]} 46. a5 {[%emt 0:00:53]} b5 {[%emt 0:02:12]} 47. f4 {[%emt 0:07:14]} gxf4+ {[%emt 0:00:56]} 48. Kxf4 {[%emt 0:00:09]} Kd4 {[%emt 0:05:04]} 49. Nb3+ {[%emt 0:00:00]} Kc4 {[%emt 0:00:00]} 50. Nc5 {[%emt 0:00:00]} Kxb4 {[%emt 0:00:00]} 51. Nxa6+ {[%emt 0:00:00]} Kxa5 {[%emt 0:00:00]} 52. Nc5 {[%emt 0:00:00]} Kb4 {[%emt 0:00:50]} 53. Ne6 {[%emt 0:00:00]} Kc4 {[%emt 0:00:00]} 54. Ke5 {[%emt 0:00:00]} b4 {[%emt 0:00:00]} 55. Nd4 {[%emt 0:00:00]} Be8 {[%emt 0:00:00]} 56. Nf3 {[%emt 0:00:00]} Kc3 {[%emt 0:00:00]} 57. Nd4 {[%emt 0:00:00]} Bd7 {[%emt 0:00:00]} 58. Nf5 {[%emt 0:00:00]} b3 {[%emt 0:00:00]} 59. Ne3 {[%emt 0:00:00]} Bxg4 {[%emt 0:00:00]} 60. Nxg4 {[%emt 0:00:00]} b2 {[%emt 0:00:00]} 61. Nxh6 {[%emt 0:00:00]} b1=Q {[%emt 0:00:05]} 62. Nf5 {[%emt 0:00:18]} Kd3 {[%emt 0:00:00]} 63. Nd6 {[%emt 0:00:00]} Qe1+ {[%emt 0:00:00]} 64. Kd5 {[%emt 0:00:00]} Qh1+ {[%emt 0:00:00]} 65. Ke5 {[%emt 0:00:00]} Qh2+ {[%emt 0:00:00]} 66. Kd5 {[%emt 0:00:00]} Qh5+ {[%emt 0:00:00]} 67. Ke6 {[%emt 0:00:00]} Kd4 {[%emt 0:00:00]} 68. Nf5+ {[%emt 0:00:00]} Kc5 {[%emt 0:00:00]} 69. Ke5 {[%emt 0:00:00]} Qe8+ {[%emt 0:00:00]} 70. Kf4 {[%emt 0:00:00]} Qe6 {[%emt 0:00:00]} 71. Ng3 {[%emt 0:00:00]} Kd4 {[%emt 0:00:00]} 72. Nf5+ {[%emt 0:00:00]} Kd3 {[%emt 0:00:00]} 73. Ng3 {[%emt 0:00:00]} Qf7+ {[%emt 0:00:00]} 74. Nf5 {[%emt 0:00:00]} Qf6 {[%emt 0:00:00]} 75. Kg4 {[%emt 0:00:00]} Ke4 {[%emt 0:00:00]} 76. Ng3+ {[%emt 0:00:00]} Ke5 {[%emt 0:00:00]} 77. Kh3 {[%emt 0:00:00]} Qf3 {[%emt 0:00:00]} 78. Kh4 {[%emt 0:00:00]} Kf6 {[%emt 0:00:28]} 79. Nh5+ {[%emt 0:00:00]} Kg6 {[%emt 0:00:00]} 80. Ng3 {[%emt 0:00:00]} Kh6 {[%emt 0:00:00]} 81. Kh3 {[%emt 0:00:00]} Kg5 {[%emt 0:00:00]} 82. Kh2 {[%emt 0:00:00]} Qf2+ {[%emt 0:00:00]} 83. Kh3 {[%emt 0:00:00]} Kf4 {[%emt 0:00:00]} 84. Nh5+ {[%emt 0:00:00]} Kf3 {[%emt 0:00:00]} 85. Nf4 {[%emt 0:00:00]} Qg3# {[%emt 0:00:27]} 0-1

[Event "Reykjavik Open 2025"]
[Site "Reykjavik"]
[Date "2025.04.10"]
[Round "3.26"]
[White "Koperski, Dustin"]
[Black "Patel, Zain"]
[Result "1/2-1/2"]
[Annotator "ChessBase"]
[ECO "C45"]
[WhiteElo "1793"]
[BlackElo "2079"]
[PlyCount "124"]
[EventDate "2025.04.09"]
[EventType "swiss"]
[EventCountry "ISL"]
[SourceTitle "playchess.com"]
[Source "ChessBase"]
[SourceQuality "1"]
[TimeControl "40/5400+30:1800+30"]

1. e4 {[%emt 0:00:04]} e5 {[%emt 0:00:35]} 2. Nf3 {[%emt 0:00:32]} Nc6 {[%emt 0:00:11]} 3. d4 {[%emt 0:00:09]} exd4 {[%emt 0:00:07]} 4. Nxd4 {[%emt 0:00:08]} Nf6 {[%emt 0:00:23]} 5. Nxc6 {[%emt 0:00:31]} bxc6 {[%emt 0:00:05]} 6. e5 {[%emt 0:00:26]} Qe7 {[%emt 0:00:07]} 7. Qe2 {[%emt 0:00:21]} Nd5 {[%emt 0:00:08]} 8. c4 {[%emt 0:00:20]} Ba6 {[%emt 0:00:08]} 9. b3 {[%emt 0:00:12]} Qh4 {[%emt 0:02:33]} 10. a3 {[%emt 0:26:48]} Nf4 {[%emt 0:01:06]} 11. Qe4 {[%emt 0:00:18]} Ng6 {[%emt 0:00:20]} 12. Qxh4 {[%emt 0:00:08]} Nxh4 {[%emt 0:00:06]} 13. Nd2 {[%emt 0:03:58]} Ng6 {[%emt 0:04:55]} 14. Bb2 {[%emt 0:02:28]} O-O-O {[%emt 0:03:04]} 15. g3 {[%emt 0:01:45]} Nxe5 {[%emt 0:04:53]} 16. Bxe5 {[%emt 0:02:01]} Re8 {[%emt 0:00:06]} 17. Nf3 {[%emt 0:00:40]} f6 {[%emt 0:02:25]} 18. Bh3 {[%emt 0:00:20]} fxe5 {[%emt 0:08:27]} 19. O-O {[%emt 0:00:50]} e4 {[%emt 0:04:15]} 20. Nd4 {[%emt 0:00:14]} Bb7 {[%emt 0:01:27]} 21. Rfe1 {[%emt 0:04:58]} c5 {[%emt 0:07:03]} 22. Nb5 {[%emt 0:01:41]} a6 {[%emt 0:02:58]} 23. Nc3 {[%emt 0:01:58]} g6 {[%emt 0:02:57]} 24. Rad1 {[%emt 0:01:27]} Bc6 {[%emt 0:00:16]} 25. Bg2 {[%emt 0:01:40]} Bg7 {[%emt 0:03:49]} 26. Nxe4 {[%emt 0:04:00]} Bxe4 {[%emt 0:09:10]} 27. Rxe4 {[%emt 0:02:22]} Bd4 {[%emt 0:01:04]} 28. Rde1 {[%emt 0:01:39]} Rxe4 {[%emt 0:00:26]} 29. Bxe4 {[%emt 0:01:51]} c6 {[%emt 0:00:29]} 30. Re2 {[%emt 0:02:24]} Kc7 {[%emt 0:00:58]} 31. Kg2 {[%emt 0:03:30]} a5 {[%emt 0:00:53]} 32. a4 {[%emt 0:00:27]} Rd8 {[%emt 0:07:44]} 33. Bd3 {[%emt 0:02:58]} Bf6 {[%emt 0:03:09]} 34. f4 {[%emt 0:02:13]} d5 {[%emt 0:01:08]} 35. cxd5 {[%emt 0:05:38]} cxd5 {[%emt 0:00:25]} 36. Re6 {[%emt 0:02:01]} Bc3 {[%emt 0:03:18]} 37. Kf3 {[%emt 0:05:50]} Kd7 {[%emt 0:03:16]} 38. Re2 {[%emt 0:00:45]} Rb8 {[%emt 0:00:26]} 39. Bb5+ {[%emt 0:00:03]} Kd6 {[%emt 0:00:11]} 40. Re8 {[%emt 0:02:51]} Rxe8 {[%emt 0:01:44]} 41. Bxe8 {[%emt 0:31:01]} c4 {[%emt 0:31:05]} 42. bxc4 {[%emt 0:00:58]} dxc4 {[%emt 0:00:06]} 43. Ke2 {[%emt 0:02:13]} Kd5 {[%emt 0:03:06]} 44. Bd7 {[%emt 0:02:15]} Bb2 {[%emt 0:02:08]} 45. Kd1 {[%emt 0:02:16]} Ke4 {[%emt 0:01:19]} 46. Kc2 {[%emt 0:00:26]} Bd4 {[%emt 0:00:09]} 47. Be6 {[%emt 0:00:15]} c3 {[%emt 0:01:54]} 48. Bg8 {[%emt 0:00:33]} h5 {[%emt 0:00:16]} 49. Bc4 {[%emt 0:01:29]} Kf5 {[%emt 0:01:24]} 50. Bd3+ {[%emt 0:01:32]} Kf6 {[%emt 0:00:07]} 51. h3 {[%emt 0:01:53]} Bf2 {[%emt 0:10:52]} 52. g4 {[%emt 0:00:09]} Be1 {[%emt 0:03:00]} 53. f5 {[%emt 0:04:39]} gxf5 {[%emt 0:03:30]} 54. Bxf5 {[%emt 0:00:17]} h4 {[%emt 0:00:07]} 55. Bc8 {[%emt 0:00:34]} Kg5 {[%emt 0:01:01]} 56. Bd7 {[%emt 0:00:33]} Bd2 {[%emt 0:00:22]} 57. Bc8 {[%emt 0:00:08]} Kf4 {[%emt 0:00:06]} 58. Bd7 {[%emt 0:00:27]} Ke5 {[%emt 0:00:17]} 59. Bc8 {[%emt 0:00:38]} Kd4 {[%emt 0:01:49]} 60. Bd7 {[%emt 0:00:25]} Bg5 {[%emt 0:00:08]} 61. Bc6 {[%emt 0:01:53]} Bd2 {[%emt 0:00:00]} 62. g5 {[%emt 0:00:00]} Bxg5 {[%emt 0:00:48]} 1/2-1/2

[Event "Reykjavik Open 2025"]
[Site "Reykjavik"]
[Date "2025.04.10"]
[Round "3.27"]
[White "Safarli, Eltaj"]
[Black "Llari, Marc"]
[Result "1-0"]
[Annotator "TA"]
[ECO "B31"]
[WhiteElo "2617"]
[BlackElo "2299"]
[PlyCount "69"]
[EventDate "2025.04.09"]
[EventType "swiss"]
[EventCountry "ISL"]
[SourceTitle "playchess.com"]
[Source "ChessBase"]
[SourceQuality "1"]
[TimeControl "40/5400+30:1800+30"]

{[%evp 9,69,4,20,19,22,24,22,16,22,20,25,18,38,43,39,43,45,35,92,99,89,66,113,79,100,82,78,86,128,130,132,123,120,113,122,114,152,149,147,150,147,138,163,166,166,167,150,152,203,203,213,213,246,246,246,246,245,245,295,295,277,277]} 1. e4 {[%emt 0:00:04]} c5 {[%emt 0:00:03]} 2. Nf3 {[%emt 0:00:17]} Nc6 {[%emt 0:00:05]} 3. Bb5 {[%emt 0:00:07]} g6 {[%emt 0:00:04]} 4. O-O {[%emt 0:00:50]} Bg7 {[%emt 0:00:08]} 5. d3 {[%emt 0:00:19]} e5 {[%emt 0:01:14]} 6. a3 {[%emt 0:00:36] B31: Sicilian: 2...Nc6 3 Bb5 g6.} Nge7 {[%emt 0:00:25]} 7. b4 {[%emt 0:00:05]} d6 {[%emt 0:01:38]} 8. bxc5 {[%emt 0:00:23] The position is equal.} dxc5 {[%emt 0:00:10]} 9. Bg5 {[%emt 0:00:09] next Bxc6+ is good for White.} Qc7 {[%emt 0:16:11]} 10. Nc3 $146 {[%emt 0:04:43]} (10. Bxe7 Qxe7 11. Bxc6+ bxc6 12. Nbd2 Be6 13. Rb1 O-O 14. Qe2 Rab8 15. c4 Rb6 16. Rfd1 {0-1 Gabrielian,A (2428)-Mikhalsky,V (2219) Titled Tuesday intern op 17th Sep Late blitz 2024 (8)}) 10... Be6 {[%emt 0:01:47]} 11. Be3 {[%emt 0:03:12]} a6 {[%emt 0:04:26]} 12. Bc4 {[%emt 0:01:12]} Nd4 {[%emt 0:01:17]} 13. Bxe6 {[%emt 0:01:30]} fxe6 {[%emt 0:09:26]} (13... Nxe6 $14 14. a4 Rd8) 14. Nd2 $16 {[%emt 0:01:26]} O-O {[%emt 0:02:58]} 15. Ne2 {[%emt 0:00:47]} Rad8 {[%emt 0:05:37]} (15... Nec6 $14 {is more appropriate.}) 16. a4 {[%emt 0:04:19]} Nec6 {[%emt 0:02:18]} 17. c3 {[%emt 0:05:14]} Nxe2+ {[%emt 0:03:10]} 18. Qxe2 {[%emt 0:00:02]} Qd6 {[%emt 0:01:08] [#]} 19. Nb3 $1 {[%emt 0:01:44]} b6 {[%emt 0:12:59]} 20. a5 {[%emt 0:04:47]} Nxa5 {[%emt 0:01:01]} 21. Nxa5 {[%emt 0:00:02]} bxa5 {[%emt 0:00:20]} 22. Rfd1 {[%emt 0:00:11]} Qc6 {[%emt 0:05:28][%cal Oc5c4]} 23. c4 {[%emt 0:06:15]} a4 {[%emt 0:02:23]} 24. Qc2 {[%emt 0:00:25]} Rf7 {[%emt 0:02:41]} 25. Qxa4 {[%emt 0:00:19]} Qxa4 {[%emt 0:00:20]} 26. Rxa4 {[%emt 0:00:00]} Rfd7 {[%emt 0:00:21]} 27. Ra3 {[%emt 0:08:01]} Bf8 {[%emt 0:02:04]} 28. Kf1 {[%emt 0:00:06]} (28. Rxa6 Rxd3 29. Rxd3 Rxd3 $16) 28... Kf7 {[%emt 0:04:03]} (28... Ra7 $16 {is a better defense.} 29. Rda1 Kf7) 29. Ke2 $18 {[%emt 0:03:22]} (29. Rxa6 h5 30. Ke2 Rb7 $18) 29... Ra7 {[%emt 0:00:35]} 30. Rda1 {[%emt 0:00:35]} Rc8 {[%emt 0:00:55]} 31. Rxa6 {[%emt 0:00:13]} Rxa6 {[%emt 0:00:05]} 32. Rxa6 {[%emt 0:00:01]} Rc7 {[%emt 0:00:08]} 33. Bd2 {[%emt 0:02:36]} Ke7 {[%emt 0:01:12]} 34. Ba5 {[%emt 0:03:28]} Rb7 {[%emt 0:00:07]} 35. Bc3 {[%emt 0:00:04] Dodges Rb2+.   Weighted Error Value: White=0.05 (flawless) /Black=0.14 (very precise)   Mistake:       	---       	Black=3      Inaccurate:     	White=1     	Black=2      OK:         	White=17    	Black=10     Best:        	White=1     	---} 1-0